bitfinex-derivatives/quotes_BTCF0:USTF0_20250411
["timestamp","ask_amount","ask_price","bid_price","bid_amount"]
[1744351116757,0.1876485,80864.0,80863.0,0.25234357]
[1744351117170,0.1876485,80864.0,80863.0,0.37609357]
[1744351117171,0.0332,80864.0,80863.0,0.37609357]
[1744351117473,0.1569485,80864.0,80863.0,0.37609357]
[1744351117766,0.0332,80864.0,80863.0,0.37609357]
[1744351117968,0.0332,80864.0,80863.0,0.40899357]
[1744351118369,0.03324,80864.0,80863.0,0.40899357]
[1744351118869,0.1569885,80864.0,80863.0,0.40899357]
[1744351119870,0.1569885,80864.0,80863.0,0.18685]
[1744351120668,0.1569885,80864.0,80863.0,0.0302]
[1744351120864,0.1569885,80864.0,80863.0,0.15395]
[1744351127784,0.1569885,80864.0,80863.0,0.18695]
[1744351132179,0.1569885,80864.0,80863.0,0.0302]
[1744351132384,0.1892885,80864.0,80863.0,0.0302]
[1744351132988,0.1237546,80860.0,80859.0,0.22214357]
[1744351133379,0.3737546,80860.0,80859.0,0.22214357]
[1744351133683,0.1237638,80854.0,80850.0,0.00018555]
[1744351133887,0.4845638,80854.0,80850.0,0.00018555]
[1744351134487,0.5464638,80854.0,80850.0,0.00018555]
[1744351137187,0.1237684,80851.0,80850.0,0.00018555]
[1744351138102,0.1549684,80851.0,80850.0,0.00018555]
[1744351140790,0.1237852,80840.0,80839.0,0.1549851]
[1744351141403,0.1237852,80840.0,80839.0,0.1849851]
[1744351141902,0.1237753,80847.0,80846.0,0.1237745]
[1744351142401,0.1237776,80845.0,80844.0,0.0618889]
[1744351142995,0.0618917,80842.0,80836.0,0.0618953]
[1744351143291,0.1237959,80834.0,80833.0,0.1237952]
[1744351143901,0.1539959,80834.0,80833.0,0.1237952]
[1744351144096,0.1539959,80834.0,80833.0,0.13318769]
[1744351144400,0.1237959,80834.0,80833.0,0.13318769]
[1744351145894,0.2195959,80834.0,80833.0,0.1237952]
[1744351146605,0.1237908,80837.0,80836.0,0.1237913]
[1744351153007,4e-05,80837.0,80832.0,0.0091226]
[1744351153203,4e-05,80837.0,80836.0,0.1856863]
[1744351154003,0.1238298,80837.0,80836.0,0.1856863]
[1744351156105,0.1238298,80837.0,80836.0,0.5464863]
[1744351156299,4e-05,80837.0,80836.0,0.6085863]
[1744351160601,0.1237812,80843.0,80840.0,0.0618923]
[1744351160805,7.291e-05,80846.0,80843.0,0.0618896]
[1744351161003,7.291e-05,80846.0,80845.0,0.4845776]
[1744351161203,7.291e-05,80846.0,80845.0,0.5489776]
[1744351163507,0.00018477,80848.0,80847.0,0.1237745]
[1744351165314,0.12395777,80848.0,80847.0,0.1237745]
[1744351166718,0.15415777,80848.0,80847.0,0.1237745]
[1744351172827,0.15415777,80848.0,80847.0,0.4845745]
[1744351177721,0.15415777,80848.0,80847.0,0.3608]
[1744351180934,0.15415777,80848.0,80847.0,0.4845745]
[1744351182022,0.15415777,80848.0,80847.0,0.3608]
[1744351182721,0.15415777,80848.0,80847.0,0.3927]
[1744351183028,0.15415777,80848.0,80847.0,0.3608]
[1744351184125,0.1237745,80847.0,80846.0,0.1237755]
[1744351184431,0.1559745,80847.0,80846.0,0.1237755]
[1744351185032,0.1559745,80847.0,80844.0,0.1856677]
[1744351185033,0.0322,80847.0,80844.0,0.1856677]
[1744351185235,0.1237776,80845.0,80844.0,0.1856677]
[1744351185435,0.1237806,80843.0,80842.0,0.1550811]
[1744351186032,0.1843806,80843.0,80842.0,0.1550811]
[1744351186435,0.1843806,80843.0,80842.0,0.1550821]
[1744351188533,0.1843806,80843.0,80842.0,0.1852821]
[1744351188732,0.1540806,80843.0,80842.0,0.1852821]
[1744351188927,0.26536849,80843.0,80842.0,0.1852821]
[1744351190337,0.23506849,80843.0,80842.0,0.1852821]
[1744351191536,0.11128789,80843.0,80842.0,0.1852821]
[1744351191930,0.1237763,80846.0,80845.0,0.1237776]
[1744351192640,0.1237763,80846.0,80845.0,0.1871776]
[1744351192837,0.1238163,80846.0,80845.0,0.1871776]
[1744351193634,4e-05,80846.0,80845.0,0.5479776]
[1744351194741,0.00018477,80848.0,80847.0,0.1237745]
[1744351196038,0.12395777,80848.0,80847.0,0.1237745]
[1744351196239,0.15635777,80848.0,80847.0,0.1237745]
[1744351196840,0.123776,80846.0,80845.0,0.5479776]
[1744351197441,0.156376,80846.0,80845.0,0.5479776]
[1744351200237,0.0326,80846.0,80845.0,0.5479776]
[1744351200439,0.00018477,80848.0,80847.0,0.1237745]
[1744351201340,0.14801772,80852.0,80851.0,0.1237684]
[1744351201644,0.22726078,80886.0,80885.0,0.1237163]
[1744351201838,0.50553214,80900.0,80897.0,0.123698]
[1744351202042,0.42758284,80900.0,80899.0,0.1236949]
[1744351202239,0.42758284,80900.0,80898.0,0.0313]
[1744351202547,0.1236965,80898.0,80897.0,0.00925436]
[1744351202847,0.1237056,80892.0,80891.0,0.00018543]
[1744351203233,0.6108,80892.0,80871.0,0.3608]
[1744351203443,0.1237301,80876.0,80875.0,0.00049459]
[1744351203636,0.4845301,80876.0,80875.0,0.00049459]
[1744351204143,0.4845301,80876.0,80865.0,0.1856186]
[1744351204144,0.1237454,80866.0,80865.0,0.1856186]
[1744351204438,0.0618675,80873.0,80870.0,0.0618692]
[1744351204641,0.0325,80872.0,80871.0,0.1237378]
[1744351204943,0.00018503,80884.0,80883.0,0.1237194]
[1744351204944,0.12390363,80884.0,80883.0,0.1237194]
[1744351205443,0.1237209,80882.0,80881.0,0.4886607]
[1744351205642,0.00018503,80884.0,80883.0,0.1237194]
[1744351205836,0.00018503,80884.0,80883.0,0.4845194]
[1744351207046,0.00022503,80884.0,80883.0,0.7345194]
[1744351207744,0.33179902,80889.0,80888.0,0.1237118]
[1744351207948,1e-08,80889.0,80888.0,0.1237118]
[1744351208140,1e-08,80889.0,80888.0,0.3737118]
[1744351208746,0.0004,80898.0,80897.0,0.123698]
[1744351208938,0.0004,80898.0,80897.0,0.845298]
[1744351209549,0.0004,80898.0,80897.0,0.910598]
[1744351210450,5.401e-05,80904.0,80903.0,0.1236888]
[1744351210642,7.291e-05,80912.0,80911.0,0.1236766]
[1744351210849,7.291e-05,80912.0,80911.0,0.8452766]
[1744351211051,0.00475,80914.0,80913.0,0.1236735]
[1744351212349,0.00479,80914.0,80913.0,0.1236735]
[1744351213349,0.128462,80914.0,80913.0,0.1236735]
[1744351213647,0.1236751,80912.0,80911.0,0.3608]
[1744351214747,0.1236751,80912.0,80911.0,0.4844766]
[1744351215152,0.00479,80914.0,80913.0,0.1236735]
[1744351215450,0.128462,80914.0,80913.0,0.1236735]
[1744351216139,0.160262,80914.0,80913.0,0.1236735]
[1744351216455,0.1236751,80912.0,80911.0,0.4226377]
[1744351217349,0.0641,80912.0,80911.0,0.4226377]
[1744351218048,0.0641,80912.0,80911.0,0.4844766]
[1744351218252,0.0318,80912.0,80911.0,0.4844766]
[1744351218456,0.0323,80913.0,80912.0,0.1236751]
[1744351218645,0.1559735,80913.0,80912.0,0.1873751]
[1744351219146,0.0323,80913.0,80912.0,0.1873751]
[1744351219338,0.0323,80913.0,80912.0,0.2201751]
[1744351219741,0.03234,80913.0,80912.0,0.2201751]
[1744351220541,0.00475,80914.0,80913.0,0.1236735]
[1744351220938,0.00475,80914.0,80913.0,0.1873735]
[1744351221348,5.401e-05,80920.0,80919.0,0.1236644]
[1744351221549,0.0004,80922.0,80921.0,0.1236613]
[1744351222451,0.00044,80922.0,80921.0,0.1236613]
[1744351222658,0.1240998,80922.0,80921.0,0.1236613]
[1744351223353,0.1236628,80920.0,80919.0,0.3608]
[1744351223548,0.1236628,80920.0,80919.0,0.5476644]
[1744351223846,0.1241001,80922.0,80921.0,0.1236613]
[1744351224046,0.1547998,80922.0,80921.0,0.1236613]
[1744351224357,0.03114,80922.0,80921.0,0.1236613]
[1744351224856,0.1547998,80922.0,80921.0,0.1236613]
[1744351225350,0.00067546,80924.0,80923.0,0.1236582]
[1744351225544,5.401e-05,80926.0,80925.0,0.1236552]
[1744351226055,0.3608,80956.0,80955.0,0.1236094]
[1744351226241,0.1236063,80957.0,80956.0,0.0639]
[1744351226749,0.123617,80950.0,80949.0,0.3608]
[1744351227251,0.1236142,80952.0,80951.0,0.1236155]
[1744351227450,0.0618075,80952.0,80951.0,0.1236155]
[1744351227652,4e-05,80957.0,80956.0,0.1236078]
[1744351228049,4e-05,80957.0,80956.0,0.1538078]
[1744351228641,0.1235927,80967.0,80956.0,0.0302]
[1744351228844,0.1870932,80966.0,80965.0,0.1235941]
[1744351229052,0.0635,80966.0,80965.0,0.1235941]
[1744351229553,0.06354,80966.0,80965.0,0.1235941]
[1744351229750,4e-05,80966.0,80965.0,0.1235941]
[1744351229949,4e-05,80966.0,80965.0,0.4843941]
[1744351230149,0.0004,80970.0,80969.0,0.123588]
[1744351230549,0.0004,80970.0,80969.0,0.186688]
[1744351230750,0.00044,80970.0,80969.0,0.186688]
[1744351231151,0.00044,80970.0,80969.0,0.181688]
[1744351231860,5.401e-05,80979.0,80978.0,0.1235743]
[1744351232155,0.0327,80992.0,80978.0,0.3608]
[1744351232355,0.0004,80994.0,80987.0,0.3608]
[1744351232657,0.0004,80994.0,80993.0,0.1235514]
[1744351232861,0.00044,80994.0,80993.0,0.1235514]
[1744351233043,0.0004,80994.0,80991.0,0.1235536]
[1744351233251,0.1235559,80990.0,80989.0,0.1853326]
[1744351234261,0.0311,80990.0,80989.0,0.1853326]
[1744351234455,0.0311,80990.0,80989.0,0.2180326]
[1744351234864,0.0636,80990.0,80989.0,0.1853326]
[1744351235848,0.0636,80990.0,80987.0,0.3608]
[1744351236051,0.123559,80988.0,80987.0,0.3608]
[1744351236552,0.187159,80988.0,80987.0,0.4843605]
[1744351236757,0.0636,80988.0,80987.0,0.4843605]
[1744351236959,0.123559,80988.0,80987.0,0.4843605]
[1744351237962,0.123559,80988.0,80987.0,0.5470605]
[1744351238260,0.123559,80988.0,80987.0,0.0627]
[1744351238758,0.0617777,80991.0,80971.0,0.297118]
[1744351239059,0.3608,80992.0,80978.0,0.3538]
[1744351239060,0.1235727,80979.0,80978.0,0.3538]
[1744351239361,0.1235834,80972.0,80971.0,0.297118]
[1744351239863,0.3735834,80972.0,80971.0,0.0090574]
[1744351240052,0.1235926,80966.0,80958.0,0.44216973]
[1744351240250,0.1236033,80959.0,80958.0,0.44216973]
[1744351240456,0.1236139,80952.0,80944.0,0.55073398]
[1744351240651,0.4844139,80952.0,80944.0,0.51983398]
[1744351241466,0.5154139,80952.0,80945.0,0.0309]
[1744351241663,0.5154139,80952.0,80944.0,0.51983398]
[1744351241864,0.5154139,80952.0,80945.0,0.0309]
[1744351242158,0.5154139,80952.0,80945.0,0.0616]
[1744351242361,0.5154139,80952.0,80948.0,0.1236185]
[1744351242362,0.1236201,80949.0,80948.0,0.1236185]
[1744351242665,0.1236201,80949.0,80948.0,0.1545185]
[1744351242868,0.1544201,80949.0,80948.0,0.1545185]
[1744351243850,0.1544201,80949.0,80948.0,0.1856185]
[1744351244857,0.1236201,80949.0,80948.0,0.1856185]
[1744351245259,0.1236201,80949.0,80948.0,0.0309]
[1744351245567,0.1236201,80948.0,80947.0,0.00049415]
[1744351246060,0.1236201,80948.0,80947.0,0.12411575]
[1744351247066,0.3608,80952.0,80951.0,0.1236155]
[1744351247663,0.1236139,80952.0,80951.0,0.1236155]
[1744351247872,0.1236117,80954.0,80953.0,0.12361]
[1744351248161,0.1236117,80954.0,80953.0,0.15591]
[1744351248367,0.1236517,80954.0,80953.0,0.0642]
[1744351248562,0.1236117,80954.0,80953.0,0.0642]
[1744351248761,0.1236117,80954.0,80953.0,0.0323]
[1744351248966,0.1236517,80954.0,80953.0,0.0323]
[1744351249568,0.1569517,80954.0,80953.0,0.0323]
[1744351249758,0.1236201,80948.0,80930.0,0.3608]
[1744351250062,0.1236201,80948.0,80942.0,0.0324]
[1744351250260,0.1236201,80948.0,80942.0,0.1560288]
[1744351250756,0.1568201,80948.0,80942.0,0.1560288]
[1744351251260,0.1568201,80948.0,80946.0,0.1236222]
[1744351251453,0.1236099,80955.0,80953.0,0.1236124]
[1744351251653,0.1236109,80954.0,80953.0,0.1236124]
[1744351251963,0.1569509,80954.0,80953.0,0.1872124]
[1744351252363,4e-05,80954.0,80953.0,0.1872124]
[1744351253355,0.123606,80958.0,80957.0,0.1854058]
[1744351254759,0.12378738,80960.0,80959.0,0.1236033]
[1744351255367,0.12378738,80960.0,80959.0,0.1868033]
[1744351255868,0.12378738,80960.0,80959.0,0.0632]
[1744351256166,0.12378738,80960.0,80959.0,0.1868033]
[1744351257271,0.00018488,80960.0,80959.0,0.1868033]
[1744351257561,0.00018488,80960.0,80959.0,0.5476033]
[1744351257753,0.00022488,80960.0,80959.0,0.5476033]
[1744351258157,0.00018488,80960.0,80959.0,0.5476033]
[1744351258356,0.00022488,80960.0,80959.0,0.5476033]
[1744351258558,0.00018488,80960.0,80959.0,0.5476033]
[1744351258764,0.00022488,80960.0,80959.0,0.5476033]
[1744351259560,5.401e-05,80971.0,80970.0,0.1235865]
[1744351259864,5.401e-05,80971.0,80970.0,0.4843865]
[1744351260167,0.1235748,80978.0,80977.0,0.1235758]
[1744351260368,0.1235748,80978.0,80977.0,0.4843758]
[1744351260666,0.1235717,80980.0,80979.0,0.1853554]
[1744351261065,0.1235717,80980.0,80979.0,0.2489554]
[1744351261264,0.1235717,80980.0,80979.0,0.1253857]
[1744351261664,5.401e-05,80984.0,80983.0,0.1235666]
[1744351262072,5.401e-05,80984.0,80981.0,0.0617842]
[1744351262073,0.11007721,80985.0,80984.0,0.1235651]
[1744351262469,0.23364081,80985.0,80984.0,0.1235651]
[1744351262765,0.11007721,80985.0,80984.0,0.1235651]
[1744351263063,0.11007721,80985.0,80984.0,0.4843651]
[1744351263064,0.06017721,80985.0,80984.0,0.4843651]
[1744351263265,0.06021721,80985.0,80984.0,0.4843651]
[1744351263468,0.06021721,80985.0,80984.0,0.5479651]
[1744351263469,4e-05,80985.0,80984.0,0.5479651]
[1744351263768,4e-05,80985.0,80984.0,0.5479644]
[1744351263970,0.1236036,80985.0,80984.0,0.4244]
[1744351264757,4e-05,80985.0,80984.0,0.5479651]
[1744351265170,0.1235623,80986.0,80985.0,0.1853419]
[1744351265372,0.1235636,80985.0,80984.0,0.4244]
[1744351265679,0.1550636,80985.0,80984.0,0.5479651]
[1744351266172,0.1550636,80985.0,80984.0,0.3608]
[1744351266463,0.1550636,80985.0,80977.0,0.3608]
[1744351266464,0.1235682,80982.0,80981.0,0.0314]
[1744351266674,0.0617863,80979.0,80970.0,0.0317]
[1744351266866,0.0617761,80993.0,80971.0,0.0615]
[1744351267074,0.1235778,80976.0,80975.0,0.1235788]
[1744351267266,0.1235778,80976.0,80975.0,0.0327]
[1744351267572,0.1235788,80975.0,80974.0,0.3608]
[1744351267768,0.0617819,80985.0,80974.0,0.3608]
[1744351267971,0.0617803,80987.0,80974.0,0.3608]
[1744351267972,0.1235655,80984.0,80983.0,0.1235666]
[1744351268269,9.842e-05,80984.0,80983.0,0.1235666]
[1744351268773,0.0617813,80986.0,80983.0,0.1235661]
[1744351269071,5.401e-05,80988.0,80987.0,0.1235605]
[1744351269470,0.12361301,80988.0,80987.0,0.1235605]
[1744351270471,0.03015401,80988.0,80987.0,0.1235605]
[1744351270777,0.03015401,80988.0,80985.0,0.0617817]
[1744351270778,0.1235605,80987.0,80986.0,0.21969159]
[1744351271169,0.15356518,80987.0,80986.0,0.34325359]
[1744351271372,0.1536605,80987.0,80986.0,0.34325359]
[1744351271768,0.1536605,80987.0,80986.0,0.123562]
[1744351272367,0.1235605,80987.0,80986.0,0.123562]
[1744351272564,0.1235636,80985.0,80984.0,0.21969159]
[1744351275581,0.1539636,80985.0,80984.0,0.21969159]
[1744351276180,0.1853582,80981.0,80980.0,0.1235712]
[1744351276584,0.1235727,80979.0,80978.0,0.1853607]
[1744351276781,0.1235727,80979.0,80978.0,0.0617871]
[1744351276978,0.1235703,80981.0,80980.0,0.1235685]
[1744351277389,0.1235743,80979.0,80978.0,0.1235735]
[1744351277683,0.1235743,80978.0,80977.0,0.21969159]
[1744351277887,0.1565743,80978.0,80977.0,0.21969159]
[1744351278187,0.1235718,80980.0,80979.0,0.1235727]
[1744351278798,0.1235743,80978.0,80977.0,0.21969159]
[1744351278983,0.1235743,80978.0,80977.0,0.34326739]
[1744351280888,0.1235743,80978.0,80977.0,0.21969159]
[1744351281384,0.1888743,80978.0,80977.0,0.21969159]
[1744351282187,0.1888743,80978.0,80976.0,0.21969159]
[1744351282389,0.1235758,80977.0,80976.0,0.21969159]
[1744351283096,0.1559758,80977.0,80976.0,0.21969159]
[1744351283899,0.1681599,80977.0,80976.0,0.21969159]
[1744351284891,0.1559758,80977.0,80976.0,0.21969159]
[1744351286493,0.1235834,80972.0,80971.0,0.0306]
[1744351287891,0.1880834,80972.0,80971.0,0.0306]
[1744351289295,0.1558834,80972.0,80971.0,0.0306]
[1744351291900,0.1235834,80972.0,80971.0,0.0306]
[1744351292204,0.1235834,80972.0,80971.0,0.0639]
[1744351292396,0.1236234,80972.0,80971.0,0.0639]
[1744351292701,0.1235834,80972.0,80971.0,0.0639]
[1744351292906,0.1236234,80972.0,80971.0,0.1874849]
[1744351293093,0.1236234,80972.0,80971.0,0.0639]
[1744351293698,0.1236234,80972.0,80971.0,0.0947]
[1744351295698,0.1236234,80972.0,80971.0,0.0614]
[1744351297595,0.1235834,80972.0,80971.0,0.0614]
[1744351297902,0.1236234,80972.0,80971.0,0.0614]
[1744351299104,0.1236234,80972.0,80971.0,0.0306]
[1744351299797,0.2108634,80972.0,80971.0,0.0306]
[1744351300402,0.1236234,80972.0,80971.0,0.0306]
[1744351300703,4e-05,80972.0,80971.0,0.5149849]
[1744351301092,0.1235775,80976.0,80971.0,0.5149849]
[1744351301406,0.1235819,80974.0,80973.0,0.1235814]
[1744351301606,0.1235734,80979.0,80975.0,0.0617894]
[1744351301904,0.0617856,80980.0,80979.0,0.1235727]
[1744351302498,0.1235743,80978.0,80977.0,0.0617873]
[1744351302697,0.1235743,80978.0,80977.0,0.0925873]
[1744351306010,0.1235743,80978.0,80977.0,0.0308]
[1744351306706,0.1235743,80978.0,80977.0,0.1543758]
[1744351306905,0.1236143,80978.0,80977.0,0.1543758]
[1744351308411,0.1236143,80978.0,80977.0,0.0308]
[1744351308914,0.1236143,80978.0,80977.0,0.1543758]
[1744351310211,0.1236143,80978.0,80977.0,0.0308]
[1744351310809,0.1236143,80978.0,80977.0,0.5151758]
[1744351311218,0.1236143,80978.0,80977.0,0.0308]
[1744351311707,0.1235743,80978.0,80977.0,0.0308]
[1744351311907,0.1236143,80978.0,80977.0,0.1543758]
[1744351312107,0.1235743,80978.0,80977.0,0.1543758]
[1744351312305,0.1236143,80978.0,80977.0,0.1543758]
[1744351312811,0.123569,80982.0,80981.0,0.1853492]
[1744351313314,0.123569,80982.0,80981.0,0.0617842]
[1744351313515,0.1235712,80980.0,80979.0,0.0617859]
[1744351314921,5.401e-05,80984.0,80983.0,0.1235666]
[1744351315109,0.1235598,80988.0,80987.0,0.1235605]
[1744351317711,0.06183091,80992.0,80988.0,0.0617795]
[1744351317909,5.401e-05,80992.0,80991.0,0.1235544]
[1744351318109,0.0004,80994.0,80993.0,0.1235514]
[1744351318310,5.401e-05,80998.0,80993.0,0.3608]
[1744351318516,0.0617548,81021.0,81017.0,0.1235148]
[1744351318716,0.3608,81030.0,81017.0,0.1235148]
[1744351318717,0.07426348,81024.0,81017.0,0.4843148]
[1744351319021,0.1239132,81018.0,81017.0,0.3608]
[1744351319206,0.1235148,81017.0,81016.0,0.032]
[1744351319719,0.1536148,81017.0,81016.0,0.032]
[1744351320220,0.1536148,81017.0,81016.0,0.1555163]
[1744351321421,0.0301,81017.0,81016.0,0.1555163]
[1744351321819,0.00044,81018.0,81017.0,0.1235148]
[1744351322021,0.0004,81018.0,81017.0,0.4843148]
[1744351322526,0.00044,81018.0,81017.0,0.4843148]
[1744351323216,0.0004,81018.0,81017.0,0.4843148]
[1744351323521,9.842e-05,81031.0,81030.0,0.123495]
[1744351323721,0.1558797,81040.0,81039.0,0.1234812]
[1744351324024,0.0617377,81043.0,81029.0,0.0308]
[1744351324025,0.1238767,81042.0,81041.0,0.1234782]
[1744351324227,0.123491,81034.0,81031.0,0.06193159]
[1744351324524,0.0617426,81037.0,81033.0,0.1234898]
[1744351324716,0.0324,81036.0,81031.0,0.00018519]
[1744351325035,0.094143,81036.0,81035.0,0.1234873]
[1744351325726,0.0324,81036.0,81035.0,0.4842873]
[1744351325923,0.0004,81042.0,81041.0,0.1234782]
[1744351326327,0.1234782,81041.0,81040.0,0.0331]
[1744351326621,0.1566782,81041.0,81040.0,0.0331]
[1744351326827,0.1566782,81041.0,81040.0,0.1565797]
[1744351327033,0.1566782,81041.0,81040.0,0.0331]
[1744351327034,0.1567182,81041.0,81040.0,0.0331]
[1744351329827,4e-05,81041.0,81040.0,0.0331]
[1744351330021,0.0004,81042.0,81041.0,0.1234782]
[1744351330328,0.1238767,81042.0,81041.0,0.1541782]
[1744351332023,0.0004,81042.0,81041.0,0.1541782]
[1744351332630,0.1238767,81042.0,81041.0,0.1541782]
[1744351335131,0.1238767,81042.0,81041.0,0.0307]
[1744351335734,0.1238767,81042.0,81031.0,0.00018519]
[1744351335735,0.1234858,81036.0,81031.0,0.00018519]
[1744351336533,0.1878858,81036.0,81031.0,0.00018519]
[1744351336835,0.1234919,81032.0,81031.0,0.00018519]
[1744351337231,0.33553063,81034.0,81031.0,0.00018519]
[1744351337433,0.1234919,81032.0,81031.0,0.00018519]
[1744351337835,0.2193919,81032.0,81031.0,0.00018519]
[1744351338143,0.1235011,81026.0,81025.0,0.21980518]
[1744351338340,0.5741411,81026.0,81025.0,0.21980518]
[1744351339040,0.1235148,81017.0,81016.0,0.0331]
[1744351339239,0.4843148,81017.0,81016.0,0.0331]
[1744351339633,0.1235193,81014.0,81013.0,0.21980518]
[1744351343135,0.0617618,81012.0,81008.0,0.00018519]
[1744351343446,0.123527,81009.0,81008.0,0.00018519]
[1744351343744,0.1235437,80998.0,80997.0,0.29401034]
[1744351344933,0.1871437,80998.0,80997.0,0.29401034]
[1744351345647,0.0306,80998.0,80997.0,0.41755564]
[1744351345938,0.1235437,80999.0,80998.0,0.123543]
[1744351346142,0.1235437,80999.0,80998.0,0.186543]
[1744351346333,0.1558437,80999.0,80998.0,0.186543]
[1744351346648,0.1558437,80999.0,80998.0,0.547343]
[1744351346844,0.0314,81003.0,80998.0,0.547343]
[1744351347144,0.0314,81003.0,81002.0,0.1235376]
[1744351347330,0.1549761,81003.0,81002.0,0.1235376]
[1744351348346,0.03144,81003.0,81002.0,0.1235376]
[1744351348546,0.0314,81003.0,81002.0,0.1235376]
[1744351348844,0.1235346,81004.0,81003.0,0.1235346]
[1744351349038,0.00018519,81006.0,81005.0,0.1235331]
[1744351349442,0.00022519,81006.0,81005.0,0.1235331]
[1744351349737,0.00018519,81006.0,81005.0,0.1235331]
[1744351349938,0.00022519,81006.0,81005.0,0.1235331]
[1744351350640,0.00018519,81006.0,81005.0,0.1235331]
[1744351350848,0.00022519,81006.0,81005.0,0.1235331]
[1744351352147,0.12375669,81006.0,81005.0,0.1235331]
[1744351354451,0.1235346,81004.0,81003.0,0.063]
[1744351354950,0.1235346,81004.0,81003.0,0.1865361]
[1744351357244,0.0325,81005.0,80999.0,0.4225706]
[1744351357245,0.1235407,81000.0,80999.0,0.3608]
[1744351358252,0.1235453,80997.0,80996.0,0.0304]
[1744351358752,0.1235468,80996.0,80995.0,0.00049385]
[1744351359054,0.1549468,80996.0,80995.0,0.00049385]
[1744351359852,0.1235498,80994.0,80993.0,0.29401034]
[1744351360051,0.0617758,80993.0,80987.0,0.3660403]
[1744351360249,0.123559,80988.0,80987.0,0.3660403]
[1744351360462,0.214279,80988.0,80987.0,0.3660403]
[1744351360858,0.1235804,80974.0,80973.0,0.5161818]
[1744351361149,0.1235804,80974.0,80973.0,0.3926]
[1744351361554,0.1235834,80972.0,80971.0,0.000494]
[1744351362148,0.1891834,80972.0,80971.0,0.000494]
[1744351362353,0.1565834,80972.0,80971.0,0.361294]
[1744351362553,0.0617893,80976.0,80975.0,0.1235788]
[1744351363754,0.0617893,80976.0,80972.0,0.0617911]
[1744351363755,0.1235819,80974.0,80973.0,0.1235814]
[1744351363956,0.1235819,80974.0,80973.0,0.1875814]
[1744351364157,0.1235819,80974.0,80973.0,0.064]
[1744351364349,0.1538819,80974.0,80973.0,0.064]
[1744351364549,4e-05,80974.0,80973.0,0.064]
[1744351364745,4e-05,80974.0,80973.0,0.1875819]
[1744351364950,0.1236204,80974.0,80973.0,0.1875819]
[1744351365154,0.1235804,80974.0,80973.0,0.1875819]
[1744351365349,0.0617889,80976.0,80975.0,0.1235788]
[1744351367259,0.0620233,80982.0,80981.0,0.1235697]
[1744351367463,0.185596,80982.0,80981.0,0.4843697]
[1744351367651,0.18554199,80982.0,80981.0,0.4843697]
[1744351367961,0.18558199,80982.0,80981.0,0.4843697]
[1744351368356,0.18558199,80982.0,80981.0,0.5155697]
[1744351368962,0.06200929,80982.0,80981.0,0.5155697]
[1744351371070,0.0121458,81005.0,81004.0,0.1235346]
[1744351371254,0.1235336,81005.0,81004.0,0.4843346]
[1744351371454,0.13596436,81005.0,81004.0,0.1235346]
[1744351371751,0.1235346,81004.0,81003.0,0.0622]
[1744351372555,0.1235346,81004.0,81003.0,0.1857361]
[1744351373956,0.1539346,81004.0,81003.0,0.1857361]
[1744351374157,0.1539346,81004.0,81003.0,0.5465361]
[1744351374554,4e-05,81005.0,81004.0,0.1235346]
[1744351374761,4e-05,81005.0,81004.0,0.1849346]
[1744351375265,0.1235254,81011.0,81005.0,0.0617664]
[1744351375471,0.03058519,81012.0,81010.0,0.3608]
[1744351375666,0.12370759,81012.0,81011.0,0.0311]
[1744351375857,0.00018519,81012.0,81011.0,0.1546239]
[1744351376059,0.00018519,81012.0,81011.0,0.2167239]
[1744351376258,0.00022519,81012.0,81011.0,0.2167239]
[1744351376654,0.00022519,81012.0,81011.0,0.22611212]
[1744351377053,0.01230394,81030.0,81017.0,0.1235148]
[1744351377258,0.3608,81041.0,81031.0,0.1234924]
[1744351377454,0.1234904,81033.0,81032.0,0.0632]
[1744351378467,0.1235304,81033.0,81032.0,0.0632]
[1744351379366,0.1235304,81033.0,81032.0,0.1866919]
[1744351379958,0.13584791,81033.0,81032.0,0.1866919]
[1744351381062,4e-05,81033.0,81032.0,0.1866919]
[1744351381255,4e-05,81033.0,81032.0,0.0632]
[1744351381455,0.1235304,81033.0,81032.0,0.0317]
[1744351381666,0.1235304,81033.0,81032.0,0.0087]
[1744351382665,0.0617473,81031.0,81024.0,0.00018519]
[1744351382867,0.1235026,81025.0,81024.0,0.00018519]
[1744351384273,0.1235026,81025.0,81024.0,0.15638929]
[1744351384767,0.1235304,81033.0,81032.0,0.1234919]
[1744351384967,0.1235304,81033.0,81032.0,0.4842919]
[1744351385164,0.0617343,81048.0,81040.0,0.1234797]
[1744351385368,5.401e-05,81043.0,81040.0,0.1234797]
[1744351385569,0.0617369,81044.0,81040.0,0.1234797]
[1744351385570,0.123663,81041.0,81040.0,0.1234797]
[1744351385769,0.123663,81041.0,81040.0,0.1858797]
[1744351385969,0.123703,81041.0,81040.0,0.1858797]
[1744351386370,0.0002248,81041.0,81040.0,0.5466797]
[1744351386566,0.0001848,81041.0,81040.0,0.5466797]
[1744351386767,0.0002248,81041.0,81040.0,0.5466797]
[1744351388172,0.0002248,81041.0,81040.0,0.4232]
[1744351388474,0.123703,81041.0,81040.0,0.4232]
[1744351388675,0.155203,81041.0,81040.0,0.4232]
[1744351389967,0.123703,81041.0,81040.0,0.4232]
[1744351390878,0.123703,81041.0,81040.0,0.5466797]
[1744351391076,0.123703,81041.0,81040.0,0.4232]
[1744351391678,0.155203,81041.0,81040.0,0.3608]
[1744351393080,0.155203,81041.0,81029.0,0.0617481]
[1744351393081,0.1234965,81029.0,81023.0,0.3608]
[1744351393278,0.1234965,81029.0,81028.0,0.154898]
[1744351394779,0.0617474,81031.0,81024.0,0.00018519]
[1744351394780,0.1235026,81025.0,81024.0,0.00018519]
[1744351395677,0.1542026,81025.0,81024.0,0.00018519]
[1744351396083,0.1542026,81025.0,81024.0,0.06228519]
[1744351398381,0.1542026,81025.0,81024.0,0.00018519]
[1744351400181,0.1235026,81025.0,81024.0,0.48448929]
[1744351400688,0.1235426,81025.0,81024.0,0.48448929]
[1744351406098,0.1235026,81025.0,81024.0,0.48448929]
[1744351406300,0.1235426,81025.0,81024.0,0.48448929]
[1744351406490,0.1235426,81025.0,81024.0,0.36098519]
[1744351406892,0.1235426,81025.0,81024.0,0.48448929]
[1744351410196,0.1234914,81033.0,81032.0,0.1852342]
[1744351410399,7.291e-05,81036.0,81035.0,0.1234873]
[1744351410609,0.0329,81054.0,81038.0,0.0617407]
[1744351410793,0.00013287,81062.0,81041.0,0.3608]
[1744351411103,0.1234295,81077.0,81076.0,0.1851334]
[1744351411291,0.1234279,81074.0,81073.0,0.0654]
[1744351412388,0.1234355,81069.0,81068.0,0.3608]
[1744351412588,0.1234386,81067.0,81066.0,0.0654]
[1744351413097,0.1234401,81066.0,81065.0,0.00018507]
[1744351413291,0.1234569,81055.0,81053.0,0.3608]
[1744351413500,0.0617,81066.0,81044.0,0.3608]